bitfinex/quotes_ETHUSD_20250620
["timestamp","ask_amount","ask_price","bid_price","bid_amount"]
[1750450132546,7.36325951,2423.3,2423.2,4.12670541]
[1750450132746,7.74552216,2423.3,2423.2,4.12670541]
[1750450132988,7.74553201,2423.3,2423.2,4.12670541]
[1750450133572,7.74650358,2423.3,2423.2,4.12670541]
[1750450133869,7.36326265,2423.3,2423.2,4.12670541]
[1750450134071,6.981,2423.3,2423.2,4.12670541]
[1750450134496,0.0596,2423.6,2423.5,4.12626366]
[1750450134681,8.9346,2423.6,2423.5,4.12626366]
[1750450135173,9.70102741,2423.6,2423.5,4.12626366]
[1750450135373,9.70105056,2423.6,2423.5,4.12626366]
[1750450135908,9.64245059,2423.6,2423.5,4.12626366]
[1750450136102,8.9356,2423.6,2423.5,4.12626366]
[1750450136412,7.74644886,2423.6,2423.5,5.00972951]
[1750450136905,7.74641873,2423.6,2423.5,5.00972951]
[1750450137111,0.8182,2424.5,2424.4,4.12473189]
[1750450137307,1.895,2424.6,2424.5,4.12456176]
[1750450137492,9.1061312,2424.6,2424.4,4.12473189]
[1750450137697,9.1061312,2424.6,2424.2,5.00506645]
[1750450137698,0.23113412,2424.5,2424.3,4.124817]
[1750450137892,0.23113412,2424.4,2424.3,4.124817]
[1750450138299,0.0596,2424.5,2424.4,4.12473189]
[1750450138497,0.29075103,2424.5,2424.4,4.50489128]
[1750450138699,0.23115077,2424.5,2424.4,4.50488431]
[1750450138898,0.8182,2424.8,2424.4,4.50488431]
[1750450138899,0.8182,2424.8,2424.6,4.12424738]
[1750450139101,19.09814084,2424.7,2424.6,3.58771393]
[1750450139609,19.09813944,2424.7,2424.6,3.58771393]
[1750450140174,9.09814234,2424.7,2424.5,4.12446503]
[1750450140375,0.23114234,2424.6,2424.5,4.12446503]
[1750450140595,10.23114234,2424.6,2424.5,4.12446503]
[1750450141603,0.23114234,2424.6,2424.5,4.12446503]
[1750450141925,19.68514234,2424.6,2424.5,4.12446503]
[1750450142100,17.20814234,2424.6,2424.5,4.12446503]
[1750450142283,17.20834151,2424.6,2424.5,4.12446503]
[1750450142617,19.09634151,2424.6,2424.5,4.12446503]
[1750450142774,19.0963394,2424.6,2424.5,4.12446503]
[1750450143285,19.09627511,2424.6,2424.5,4.12446503]
[1750450144091,7.20827511,2424.6,2424.5,4.12446503]
[1750450145500,7.20823537,2424.6,2424.5,4.12446503]
[1750450145688,7.20818205,2424.6,2424.5,4.12446503]
[1750450146618,0.23118205,2424.6,2424.5,4.12446503]
[1750450146779,9.09318205,2424.6,2424.5,4.12446503]
[1750450149280,9.09218205,2424.6,2424.5,4.12446503]
[1750450150421,9.09218205,2424.6,2424.3,4.12483677]
[1750450150624,0.23111683,2424.5,2424.4,4.12462249]
[1750450150792,1.00163709,2424.5,2424.4,4.12462249]
[1750450150993,1.00163526,2424.5,2424.4,4.12462249]
[1750450151194,10.0,2424.4,2424.2,4.7417]
[1750450151443,1.00171014,2424.3,2424.2,8.86673411]
[1750450151764,10.0,2424.2,2423.5,5.56696585]
[1750450151886,18.03320933,2424.3,2423.9,4.12543991]
[1750450151887,2.88960933,2424.1,2423.9,4.12543991]
[1750450152088,2.88960933,2424.1,2423.8,4.12570255]
[1750450152089,0.8612,2423.9,2423.6,4.1259757]
[1750450152388,1.06139168,2423.8,2423.6,4.1259757]
[1750450152623,7.97279168,2423.7,2423.6,4.1259757]
[1750450152921,7.97298178,2423.7,2423.6,4.1259757]
[1750450153123,7.97298584,2423.7,2423.6,4.1259757]
[1750450153329,0.0596,2423.6,2423.3,4.12660421]
[1750450153504,2.65877321,2423.5,2423.4,4.12643393]
[1750450154110,2.27338749,2423.5,2423.4,4.12643393]
[1750450154316,2.65877645,2423.5,2423.4,4.12643393]
[1750450154514,9.62977697,2423.5,2423.4,4.12643393]
[1750450154821,9.24437329,2423.5,2423.4,4.12643393]
[1750450155224,9.24416069,2423.5,2423.4,4.12643393]
[1750450155916,8.859,2423.5,2423.4,4.12643393]
[1750450156232,9.24415168,2423.5,2423.4,4.12643393]
[1750450156418,8.859,2423.5,2423.4,4.12643393]
[1750450158926,8.9199,2423.5,2423.4,4.12643393]
[1750450159130,8.9199,2423.5,2423.3,4.12651358]
[1750450159294,10.8077,2423.4,2423.0,4.7417]
[1750450159495,10.8077,2423.4,2423.1,4.12685377]
[1750450159691,0.0609,2423.3,2423.1,4.12685377]
[1750450160607,10.8077,2423.4,2423.1,4.12685377]
[1750450160908,0.0609,2423.2,2422.9,4.12720642]
[1750450161112,7.0299,2423.1,2422.9,4.12720642]
[1750450161310,1.888,2423.0,2422.9,4.12720642]
[1750450161621,0.0609,2423.3,2423.1,4.12687071]
[1750450161825,18.858,2423.2,2423.1,4.12687071]
[1750450162136,10.0,2423.1,2423.0,4.12701488]
[1750450162516,18.858,2423.1,2423.0,4.12701488]
[1750450162942,0.8077,2423.4,2423.0,4.12701488]
[1750450163252,1.888,2423.5,2423.4,4.12631323]
[1750450163560,1.888,2423.5,2423.2,4.12676166]
[1750450163561,10.0,2423.4,2423.2,4.12668379]
[1750450163702,10.0,2423.4,2423.1,4.12692342]
[1750450163703,10.0609,2423.4,2423.1,4.12684261]
[1750450163899,10.0,2423.4,2423.1,4.12684261]
[1750450164095,0.0609,2423.3,2423.1,4.12684261]
[1750450165138,6.969,2423.2,2423.1,4.12684261]
[1750450167028,11.9489,2423.5,2423.2,4.1267447]
[1750450167220,1.888,2423.9,2423.5,4.12626366]
[1750450167542,0.8028,2424.5,2424.2,4.12507218]
[1750450167732,0.8028,2424.5,2424.3,4.12490203]
[1750450167733,6.968,2424.4,2424.3,4.12490203]
[1750450168122,16.968,2424.4,2424.3,4.12490203]
[1750450168420,0.8558,2424.7,2424.4,4.12473189]
[1750450168614,9.23182706,2424.6,2424.5,4.12443409]
[1750450168844,8.848,2424.6,2424.5,4.12443409]
[1750450169218,18.848,2424.6,2424.5,4.12443409]
[1750450169560,8.849,2424.6,2424.5,4.12443409]
[1750450170056,0.8389,2424.9,2424.7,4.1241983]
[1750450170254,9.93189,2424.8,2424.7,4.1241983]
[1750450170439,9.93189,2424.8,2424.6,4.12429766]
[1750450170642,10.0,2424.7,2424.6,4.12429766]
[1750450172117,10.0609,2425.1,2424.7,4.07443453]
[1750450172322,0.0609,2424.9,2424.7,4.12418567]
[1750450172523,6.966,2424.8,2424.7,4.12418567]
[1750450173021,6.966,2424.8,2424.6,4.12429796]
[1750450173022,0.0609,2424.9,2424.8,4.12405146]
[1750450173221,18.9069,2424.9,2424.8,4.12405146]
[1750450173724,18.845,2424.9,2424.8,4.12405146]
[1750450174140,11.881,2424.9,2424.8,4.12405146]
[1750450174353,18.845,2424.9,2424.8,4.12405146]
[1750450176094,10.0,2424.9,2424.8,4.12405146]
[1750450176235,18.844,2424.9,2424.6,4.12427406]
[1750450176427,18.9049,2424.9,2424.8,4.12405146]
[1750450177274,1.88,2424.9,2424.8,4.12396263]
[1750450177454,8.843,2424.9,2424.8,4.12396263]
[1750450178046,8.9039,2424.9,2424.7,4.12412937]
[1750450178637,8.9039,2424.9,2424.8,4.12405146]
[1750450179276,8.9019,2424.9,2424.8,4.12405146]
[1750450179698,10.778,2425.2,2424.8,4.12405146]
[1750450179885,1.88,2424.9,2424.8,4.12405146]
[1750450181060,1.88,2424.9,2424.7,4.12414395]
[1750450181298,6.961,2424.8,2424.7,4.12414395]
[1750450182657,6.961,2424.8,2424.7,4.93844395]
[1750450183696,1.88,2424.9,2424.8,4.12405146]
[1750450183861,8.839,2424.9,2424.8,4.12405146]
[1750450184261,8.839,2424.9,2424.7,4.12422155]
[1750450184262,0.7851,2424.8,2424.7,4.12422155]
[1750450184499,0.7851,2425.1,2424.8,4.12397296]
[1750450184688,8.8999,2425.0,2424.8,4.12397296]
[1750450184883,0.7851,2425.1,2424.9,4.12388139]
[1750450185071,8.838,2425.0,2424.9,4.1237441]
[1750450186725,9.909,2425.3,2424.8,0.8207]
[1750450186864,9.909,2425.3,2425.0,4.1236942]
[1750450186865,8.8998,2425.2,2425.0,4.1236942]
[1750450187398,18.8998,2425.2,2425.0,4.1236942]
[1750450187786,18.8998,2425.2,2424.7,0.8207]
[1750450187992,18.8998,2425.2,2425.0,4.12363874]
[1750450189611,10.0,2425.1,2425.0,4.12363874]
[1750450191075,10.0,2425.1,2424.8,4.7417]
[1750450191317,6.956,2425.0,2424.8,8.86564185]
[1750450191513,7.0178,2425.0,2424.8,4.7417]
[1750450191712,0.0618,2424.9,2424.8,4.7417]
[1750450192014,6.956,2425.0,2424.9,4.12388139]
[1750450192510,6.956,2425.0,2424.8,8.86566388]
[1750450192706,6.956,2425.0,2424.8,8.86558258]
[1750450192908,7.0178,2425.0,2424.8,8.86558258]
[1750450193277,7.0178,2425.0,2424.9,4.12388139]
[1750450193606,6.956,2425.0,2424.9,4.12388139]
[1750450194009,6.956,2425.0,2424.8,4.7417]
[1750450194214,7.0178,2425.0,2424.8,4.7417]
[1750450194429,7.0178,2425.0,2424.8,8.86570734]
[1750450194634,10.21071431,2424.9,2424.5,4.7417]
[1750450194929,10.0,2424.7,2424.5,4.7417]
[1750450195093,10.7712,2424.9,2424.6,4.12439165]
[1750450195292,10.0,2424.7,2424.6,4.12439165]
[1750450195493,10.0,2424.7,2424.5,8.86615817]
[1750450195820,18.834,2424.6,2424.5,8.86615817]
[1750450196319,18.833,2424.6,2424.5,8.86615817]
[1750450197596,16.953,2424.6,2424.5,9.64095817]
[1750450197837,16.953,2424.6,2424.5,11.0175217]
[1750450199136,17.72509444,2424.6,2424.5,11.0175217]
[1750450199335,17.72509444,2424.6,2424.5,9.64095817]
[1750450200038,17.72510732,2424.6,2424.5,9.64095817]
[1750450200237,7.72510732,2424.6,2424.5,9.64095817]
[1750450201335,7.7251496,2424.6,2424.5,8.86615817]
[1750450201537,7.7251496,2424.6,2424.5,8.86626176]
[1750450202503,7.72519554,2424.6,2424.5,8.86626176]
[1750450202838,7.72520358,2424.6,2424.5,8.86626176]
[1750450202998,7.72520358,2424.6,2424.5,8.92616176]
[1750450203198,7.72420358,2424.6,2424.5,8.92616176]
[1750450203627,7.72420358,2424.6,2424.5,10.30720565]
[1750450204016,7.72317541,2424.6,2424.5,11.06680565]
[1750450204436,0.77217541,2424.6,2424.5,11.06680565]
[1750450205033,0.77218412,2424.6,2424.5,11.06680565]
[1750450205233,16.951,2424.8,2424.7,4.12422155]
[1750450205467,17.72318902,2424.8,2424.7,4.12422155]
[1750450205969,17.72318902,2424.8,2424.7,4.7417]
[1750450206172,18.01664834,2424.8,2424.7,8.86592155]
[1750450206467,18.01664834,2424.8,2424.7,4.7417]
[1750450207168,17.95487216,2424.8,2424.7,4.12422155]
[1750450207376,17.95388834,2424.8,2424.7,4.12422155]
[1750450207573,0.77222902,2424.8,2424.7,4.12422155]
[1750450207874,7.72119224,2424.8,2424.7,5.70928248]
[1750450208070,7.0108,2424.8,2424.7,4.12422155]
[1750450208234,7.7829685,2424.8,2424.7,4.12422155]
[1750450208436,7.78297977,2424.8,2424.7,4.12422155]
[1750450209071,0.77217977,2424.8,2424.7,4.12422155]
[1750450209374,9.59417448,2424.8,2424.7,4.12422155]
[1750450209572,0.77217448,2424.8,2424.7,4.12422155]
[1750450209750,9.65597448,2424.8,2424.7,4.12422155]
[1750450210274,9.65596763,2424.8,2424.7,4.12422155]
[1750450210957,9.59418782,2424.8,2424.7,4.12422155]
[1750450211481,9.59418782,2424.8,2423.8,0.8253]
[1750450211482,0.8278,2424.7,2423.8,0.8253]
[1750450211635,10.0,2424.3,2424.2,4.12507218]
[1750450211834,11.00406692,2424.3,2424.2,4.12507218]
[1750450212035,9.82506692,2424.3,2424.2,4.12507218]
[1750450213038,9.59336338,2424.3,2424.2,4.12507218]
[1750450213238,9.82477562,2424.3,2424.2,4.12507218]
[1750450213473,9.43861491,2424.3,2424.2,4.12507218]
[1750450213789,9.59301712,2424.3,2424.2,4.12507218]
[1750450216045,9.59184526,2424.3,2424.2,5.72339998]
[1750450216479,8.82,2424.3,2424.2,5.72339998]
[1750450216685,9.59165378,2424.3,2424.2,5.72339998]
[1750450217401,9.59164598,2424.3,2424.2,5.72339998]
[1750450217607,7.71764598,2424.3,2424.2,5.72339998]
[1750450217775,0.77164598,2424.3,2424.2,5.72339998]
[1750450217975,7.71764598,2424.3,2424.2,5.72339998]
[1750450218199,7.7176479,2424.3,2424.2,5.72339998]
[1750450218501,7.33181909,2424.3,2424.2,5.72339998]
[1750450218704,7.71764764,2424.3,2424.2,5.72339998]
[1750450218897,7.71764764,2424.3,2424.2,4.89837218]
[1750450219263,6.946,2424.3,2424.2,4.89837218]
[1750450219535,7.71763621,2424.3,2424.2,4.89837218]
[1750450220435,7.71770522,2424.3,2424.2,4.89837218]
[1750450220759,0.77170522,2424.3,2424.2,9.64007218]
[1750450220923,16.946,2424.7,2424.6,4.12439165]
[1750450221238,17.71771299,2424.7,2424.6,4.12439165]
[1750450221735,17.71772579,2424.7,2424.6,4.12439165]
[1750450221944,0.77172579,2424.7,2424.6,4.12439165]
[1750450222105,7.495,2424.8,2424.7,4.12422155]
[1750450222283,8.266711,2424.8,2424.7,4.12422155]
[1750450223432,0.771711,2424.8,2424.7,5.42874536]
[1750450223728,0.7717424,2424.8,2424.7,6.25498473]
[1750450223913,0.77176722,2424.8,2424.7,6.25498473]
[1750450224929,8.817,2425.0,2424.9,4.12388139]
[1750450225093,9.5885672,2425.0,2424.9,4.12388139]
[1750450225292,9.58855086,2425.0,2424.9,4.12388139]
[1750450225493,9.58855039,2425.0,2424.9,4.12388139]
[1750450225829,10.19505039,2425.0,2424.9,4.12388139]
[1750450226533,10.19405039,2425.0,2424.9,4.12388139]
[1750450227322,10.13755039,2425.0,2424.9,4.12388139]
[1750450227528,10.13744638,2425.0,2424.9,4.12388139]
[1750450227724,9.75166277,2425.0,2424.9,4.12388139]
[1750450227928,10.13732321,2425.0,2424.9,4.12388139]
[1750450228636,1.37782321,2425.0,2424.9,4.12388139]
[1750450228839,8.31982321,2425.0,2424.9,4.12388139]
[1750450229643,8.26332321,2425.0,2424.9,4.12388139]
[1750450230405,8.26315697,2425.0,2424.9,4.12388139]
[1750450230605,7.87749578,2425.0,2424.9,4.12388139]
[1750450230807,8.26299229,2425.0,2424.9,4.12388139]
[1750450231235,8.26292189,2425.0,2424.9,4.12388139]
[1750450231544,8.26285082,2425.0,2424.9,4.12388139]
[1750450232305,0.38542541,2425.0,2424.9,4.12388139]
[1750450234041,0.77079208,2425.0,2424.9,8.86558139]
[1750450235049,7.71070591,2425.0,2424.9,8.86558139]
[1750450235207,7.71072269,2425.0,2424.9,8.86558139]
[1750450235842,7.76722269,2425.0,2424.9,8.86558139]
[1750450236348,7.76719179,2425.0,2424.9,8.86558139]
[1750450236515,7.71069179,2425.0,2424.9,8.86558139]
[1750450236909,8.2606631,2425.0,2424.9,8.86558139]
[1750450237123,8.3171631,2425.0,2424.9,8.86558139]
[1750450237348,8.31713409,2425.0,2424.9,8.86558139]
[1750450237646,8.31714804,2425.0,2424.9,8.86558139]
[1750450238443,7.93182344,2425.0,2424.9,4.12388139]
[1750450238754,8.31709067,2425.0,2424.9,4.12388139]
[1750450239150,7.5465,2425.0,2424.9,4.12388139]
[1750450239336,0.0565,2424.9,2424.8,4.7417]
[1750450239643,0.82715752,2424.9,2424.8,4.7417]
[1750450240011,0.77065752,2424.9,2424.8,8.86575146]
[1750450240260,9.57464427,2424.9,2424.8,8.86575146]
[1750450240422,9.57463318,2424.9,2424.8,8.86575146]
[1750450240612,9.57463109,2424.9,2424.8,8.86575146]
[1750450241519,9.57462635,2424.9,2424.8,8.86575146]
[1750450241921,9.57462372,2424.9,2424.8,8.86575146]
[1750450242147,2.63762372,2424.9,2424.8,8.86575146]
[1750450242450,9.57362372,2424.9,2424.8,8.86575146]
[1750450242654,9.57366009,2424.9,2424.8,8.86575146]
[1750450243014,9.5738562,2424.9,2424.8,8.86575146]
[1750450243215,9.63051727,2424.9,2424.8,8.86575146]
[1750450243444,9.63052822,2424.9,2424.8,8.86575146]
[1750450243648,9.63052609,2424.9,2424.8,8.86575146]
[1750450243851,10.5935787,2424.9,2424.8,4.7417]
[1750450244048,11.3575787,2424.9,2424.8,4.7417]
[1750450244256,11.3576018,2424.9,2424.8,4.7417]
[1750450244439,11.3011018,2424.9,2424.7,4.12413066]
[1750450244765,0.44202954,2424.8,2424.7,4.12413066]
[1750450244960,0.82756115,2424.8,2424.7,4.12413066]
[1750450245525,12.04201589,2424.8,2424.5,4.12447762]
[1750450245854,0.0565,2424.5,2424.4,8.86638657]
[1750450246040,8.56336115,2424.5,2424.3,4.12482122]
[1750450246240,0.77141262,2424.4,2424.3,4.12482122]
[1750450246444,0.82791262,2424.4,2424.3,4.12482122]
[1750450246752,0.82792171,2424.4,2424.3,4.12482122]
[1750450246953,7.70541701,2424.4,2424.3,5.42399411]
[1750450247126,7.70571362,2424.4,2424.3,5.42399411]
[1750450247532,7.70572465,2424.4,2424.3,5.42399411]
[1750450247956,7.70572438,2424.4,2424.3,5.42399411]
[1750450249353,7.31986219,2424.4,2424.3,5.42399411]
[1750450249581,7.70577205,2424.4,2424.3,5.42399411]
[1750450249721,7.70581824,2424.4,2424.3,4.12482122]
[1750450250063,7.70582537,2424.4,2424.3,4.12482122]
[1750450250354,6.934,2424.4,2424.3,4.12482122]
[1750450250563,7.70582898,2424.4,2424.3,4.12482122]
[1750450250981,7.7057412,2424.4,2424.3,4.12482122]
[1750450251196,7.70565339,2424.4,2424.3,4.12482122]
[1750450251484,7.70564832,2424.4,2424.3,4.12482122]
[1750450252377,7.7036477,2424.4,2424.3,4.12482122]
[1750450252867,7.70357606,2424.4,2424.3,4.12482122]
[1750450253248,7.70350151,2424.4,2424.3,4.12482122]
[1750450253976,7.70350374,2424.4,2424.3,4.12482122]
[1750450254269,7.31775187,2424.4,2424.3,4.12482122]
[1750450254472,7.70347998,2424.4,2424.3,4.12482122]
[1750450254668,7.70345164,2424.4,2424.3,4.12482122]
[1750450254876,7.31772582,2424.4,2424.3,4.12482122]
[1750450255052,7.70345169,2424.4,2424.3,4.12482122]
[1750450255249,7.70245169,2424.4,2424.3,5.09218632]
[1750450256276,0.77133798,2424.4,2424.3,9.83388632]
[1750450256474,0.38566802,2424.4,2424.3,9.83388632]
[1750450256782,0.7543,2425.4,2425.2,4.12337126]
[1750450256950,7.9325453,2425.3,2425.2,4.12337126]
[1750450257154,17.70118762,2425.3,2425.2,4.12337126]
[1750450257357,0.77118762,2425.3,2425.2,9.64887126]
[1750450257551,1.867,2425.5,2425.4,4.12303125]
[1750450257756,9.56807988,2425.5,2425.4,4.12303125]
[1750450257949,19.56807988,2425.5,2425.4,4.12303125]
[1750450258151,19.56805758,2425.5,2425.4,4.12303125]
[1750450258363,19.56804532,2425.5,2425.4,4.12303125]
[1750450258770,19.56704532,2425.5,2425.4,4.12303125]
[1750450258974,19.56691212,2425.5,2425.4,4.12303125]
[1750450259283,19.5669158,2425.5,2425.4,4.12303125]
[1750450260297,19.56673627,2425.5,2425.4,4.12303125]
[1750450260654,16.928,2425.5,2425.4,4.12303125]
[1750450260867,17.69871004,2425.5,2425.4,4.12303125]
[1750450261967,17.69869119,2425.5,2425.4,4.12303125]
[1750450262292,17.69867418,2425.5,2425.4,4.12303125]
[1750450262455,0.38533617,2425.5,2425.4,5.69802601]
[1750450262659,10.8131,2426.0,2425.9,4.12218145]
[1750450262660,1.859,2426.0,2425.9,4.12218145]
[1750450262859,2.8598928,2426.0,2425.9,4.12218145]
[1750450263083,9.55591046,2426.0,2425.9,4.12218145]
[1750450263297,2.62890294,2426.0,2425.9,4.12218145]
[1750450263596,2.6289002,2426.0,2425.9,5.00673063]
[1750450263802,7.31090942,2426.0,2425.9,5.00673063]
[1750450264160,7.31089956,2426.0,2425.9,5.00673063]
[1750450264577,7.3108869,2426.0,2425.9,5.00673063]
[1750450264976,7.3108869,2426.0,2425.9,4.94663063]
[1750450265295,7.31083378,2426.0,2425.9,4.94663063]
[1750450265459,6.926,2426.0,2425.9,4.94663063]
[1750450269600,1.9174,2426.3,2426.2,4.12167175]
[1750450269780,9.22409147,2426.3,2426.2,4.12167175]
[1750450270108,9.22308623,2426.3,2426.2,4.12167175]
[1750450270405,1.859,2426.3,2426.2,4.12167175]
[1750450270569,8.781,2426.3,2426.2,4.12167175]
[1750450271374,18.8394,2426.3,2426.2,4.12167175]
[1750450274190,18.781,2426.3,2426.2,4.12167175]
[1750450275395,16.919,2426.3,2426.2,4.12167175]
[1750450276525,1.859,2426.4,2426.3,4.12150187]
[1750450276698,8.8399,2426.4,2426.1,4.12170272]
[1750450276897,2.477,2426.3,2426.1,4.12173611]
[1750450277226,2.5389,2426.3,2426.2,4.12167175]
[1750450277396,9.4569,2426.3,2426.2,4.12167175]
[1750450277829,9.395,2426.3,2426.2,4.12167175]
[1750450278034,2.477,2426.9,2426.6,4.12099233]
[1750450278204,0.8485,2427.5,2426.7,10.25191973]
[1750450278530,7.7655,2427.5,2427.4,4.11963417]
[1750450279117,10.2425,2427.5,2427.4,4.11963417]
[1750450279736,3.2636,2427.2,2426.7,4.12071576]
[1750450279896,3.3255,2426.9,2426.2,1.61264079]
[1750450280099,0.0619,2426.7,2426.6,4.12099233]
[1750450280293,3.2636,2426.9,2426.8,4.12065271]
[1750450280294,0.7866,2426.9,2426.8,4.12065271]
[1750450280498,9.6225,2426.9,2426.8,4.12065271]
[1750450280997,0.0619,2427.2,2427.1,4.12004696]
[1750450281210,18.8359,2427.2,2427.1,4.12004696]
[1750450281409,10.0,2427.2,2427.1,4.12004696]
[1750450281695,11.858,2427.3,2427.2,4.11997363]
[1750450281895,1.858,2427.3,2427.2,4.11997363]
[1750450282099,8.773,2427.3,2427.2,4.11997363]
[1750450283732,8.773,2427.3,2427.1,4.12004696]
[1750450284233,8.773,2427.3,2427.0,4.12022863]
[1750450284898,8.773,2427.3,2426.9,4.12045332]
[1750450284899,8.8349,2427.3,2426.9,4.12041339]
[1750450285100,8.773,2427.3,2426.9,4.12041339]
[1750450285294,0.0619,2427.2,2426.9,4.12041339]
[1750450285601,0.0619,2427.2,2426.9,5.02913247]
[1750450285802,0.0619,2427.2,2427.0,4.12029511]
[1750450286023,0.44560407,2427.2,2426.9,5.0290812]
[1750450286225,6.913,2427.1,2427.0,4.12031314]
[1750450287118,0.0619,2427.4,2426.7,0.7883]
[1750450287306,6.913,2427.1,2426.8,4.12057024]
[1750450287731,6.9749,2427.1,2426.8,4.12057024]
[1750450288039,6.9749,2427.1,2426.9,4.12047687]
[1750450288463,0.7866,2427.5,2427.4,4.11963417]
[1750450288464,0.8485,2427.5,2427.4,4.11963417]
[1750450288601,0.35243978,2428.2,2427.4,0.41196342]
[1750450288602,0.7786,2428.2,2427.4,0.41196342]
[1750450288800,7.67751959,2428.1,2427.7,4.11900676]
[1750450289045,0.76634514,2428.0,2427.7,4.11912416]
[1750450289248,0.44518499,2427.9,2427.7,4.11912416]
[1750450289553,0.0619,2427.9,2427.7,4.11912416]
[1750450290303,0.0619,2427.9,2427.6,4.11921968]
[1750450290642,0.44491596,2427.9,2427.6,4.11921968]
[1750450291005,0.0619,2427.9,2427.6,4.11921968]
[1750450291517,0.44491356,2427.9,2427.6,4.11921968]
[1750450291712,0.0619,2427.7,2427.0,0.8165]
[1750450291945,8.76,2427.6,2427.4,4.1195211]
[1750450292620,8.8219,2427.6,2427.3,4.11972268]
[1750450292827,0.0619,2427.5,2427.3,4.11972268]
[1750450293206,0.0619,2427.5,2427.2,4.11985949]
[1750450293541,0.0619,2427.5,2427.3,4.11978457]
[1750450294857,4.11948788,2427.5,2427.0,0.8165]
[1750450295014,4.11948788,2427.5,2426.9,0.41322449]
[1750450295015,0.0619,2427.3,2426.8,0.7828]
[1750450295343,6.909,2427.2,2427.1,4.12012148]
[1750450297760,0.7907,2427.6,2427.1,4.12012148]
[1750450297928,1.85,2427.3,2427.2,4.11997363]
[1750450298114,1.85,2427.3,2427.2,5.35601115]
[1750450299012,0.24417184,2428.5,2428.3,4.11810731]
[1750450299327,0.76652394,2428.4,2428.3,4.11810731]
[1750450299523,0.76648506,2428.4,2428.3,4.11810731]
[1750450299850,0.38323765,2428.4,2428.3,4.11810731]
[1750450300054,0.44472739,2428.4,2428.3,4.11810731]
[1750450300351,0.38282739,2428.4,2428.3,4.11810731]
[1750450300547,0.24417184,2428.5,2428.4,4.11793773]
[1750450300848,0.68889397,2428.5,2428.4,4.11793773]
[1750450301154,1.07171617,2428.5,2428.4,4.11793773]
[1750450301331,0.24417184,2428.5,2428.4,4.88473773]
[1750450301652,0.24417184,2428.5,2428.4,5.78502223]
[1750450302053,0.24417184,2428.5,2428.4,5.88389664]
[1750450302247,0.24417184,2428.5,2428.4,5.84272223]
[1750450302827,0.24417184,2428.5,2428.4,5.78502223]
[1750450303628,0.24417184,2428.5,2428.4,5.01822223]
[1750450303826,0.30607184,2428.5,2428.3,4.11802404]
[1750450304033,0.0619,2428.4,2428.3,4.11802404]
[1750450305053,1.85,2428.4,2428.3,4.11802404]
[1750450305222,1.9119,2428.4,2428.3,4.11802404]
[1750450305825,0.0619,2428.3,2427.8,0.7814]
[1750450306022,0.0619,2428.3,2428.2,4.11827691]
[1750450306222,1.85,2428.4,2428.3,4.11810731]
[1750450306622,2.23295351,2428.4,2428.3,4.11810731]
[1750450306819,1.85,2428.4,2428.3,4.11810731]
[1750450307022,2.23295675,2428.4,2428.3,4.11810731]
[1750450307265,2.29175068,2428.4,2428.3,4.11810731]
[1750450307618,2.67527313,2428.4,2428.3,4.11810731]
[1750450307818,0.0588,2428.3,2428.2,4.11822103]
[1750450308060,0.82527907,2428.3,2428.2,4.11822103]
[1750450308649,0.76638377,2428.3,2428.0,4.11850154]
[1750450308957,1.59610146,2428.2,2428.1,4.1183656]
[1750450309769,1.59611004,2428.2,2428.1,4.1183656]
[1750450310265,0.8297,2428.2,2428.1,4.1183656]
[1750450310474,1.59676098,2428.2,2428.1,4.1183656]
[1750450310628,1.21323049,2428.2,2428.1,4.1183656]
[1750450310823,1.53796388,2428.2,2428.1,4.1183656]
[1750450311063,19.52006388,2428.2,2428.1,4.1183656]
[1750450311976,21.99453212,2428.2,2428.1,4.1183656]
[1750450312169,21.99453214,2428.2,2428.1,4.1183656]
[1750450312629,21.99353243,2428.2,2428.1,4.1183656]
[1750450312827,21.60976635,2428.2,2428.1,4.1183656]
[1750450313076,21.60984372,2428.2,2428.1,4.1183656]
[1750450313831,21.99381533,2428.2,2428.1,4.1183656]
[1750450314032,21.99394322,2428.2,2428.1,4.1183656]
[1750450315477,11.60997161,2428.2,2428.1,4.1183656]
[1750450316249,11.226,2428.2,2428.1,4.1183656]
[1750450316775,2.474,2428.2,2428.1,4.1183656]
[1750450316961,9.375,2428.2,2428.1,4.1183656]
[1750450318950,2.474,2428.4,2428.3,4.11810731]
[1750450319149,11.2778,2428.4,2428.3,4.11810731]
[1750450319694,2.474,2428.4,2428.3,4.11810731]
[1750450319885,2.08917184,2428.5,2428.4,4.11793773]
[1750450320090,0.24417184,2428.5,2428.4,4.11793773]
[1750450320646,7.14417184,2428.5,2428.4,4.11793773]
[1750450320961,7.20297184,2428.5,2428.4,4.11793773]
[1750450321179,0.24417184,2428.5,2428.4,4.11793773]
[1750450321345,8.98917184,2428.5,2428.4,4.11793773]
[1750450321545,0.24417184,2428.5,2428.4,4.11793773]
[1750450321801,7.14417184,2428.5,2428.4,4.11793773]
[1750450322103,0.005,2428.7,2428.4,4.11793773]
[1750450322104,0.005,2428.7,2428.5,0.0388]
[1750450322247,0.005,2429.9,2429.5,4.11607326]
[1750450322679,10.005,2429.9,2429.5,4.11607326]
[1750450322882,0.0638,2429.6,2429.5,4.11607326]
[1750450323196,0.005,2429.6,2429.5,4.11607326]
[1750450324099,0.005,2429.6,2429.5,5.0231405]
[1750450324256,0.005,2429.6,2429.5,5.76258207]
[1750450324985,0.005,2429.6,2429.5,15.80373085]
[1750450325306,0.005,2429.6,2429.5,15.76258207]
[1750450325505,0.005,2429.9,2429.8,19.56918963]
[1750450325698,0.005,2429.9,2429.8,29.29506967]
[1750450325883,0.005,2429.9,2429.8,39.29506967]
[1750450326773,0.005,2429.9,2429.8,32.38806967]
[1750450326992,0.005,2429.9,2429.8,24.6220451]
[1750450327678,0.005,2429.9,2429.8,17.7150451]
[1750450328071,0.005,2429.9,2429.8,7.7150451]
[1750450328410,0.005,2429.9,2429.8,7.6762451]
[1750450328577,1.9038,2430.5,2430.1,4.11495634]
[1750450328578,0.7663,2430.3,2430.1,4.11495634]
[1750450328759,0.7663,2430.3,2429.5,1.65370881]
[1750450328962,0.7663,2430.3,2429.8,4.11545168]
[1750450329605,4.88103262,2430.3,2429.8,4.11545168]
[1750450329911,0.7663,2430.3,2429.9,4.11537024]
[1750450330588,0.0588,2430.2,2429.9,4.11537024]
[1750450330772,10.0,2430.0,2429.9,4.11537024]
[1750450330957,0.0588,2429.9,2429.2,0.8237]
[1750450331162,18.756,2429.8,2429.7,4.11573445]
[1750450331379,11.844,2429.8,2429.7,4.11573445]